bitfinex/quotes_SOLUSD_20230116
["timestamp","ask_amount","ask_price","bid_price","bid_amount"]
[1673832125828,69.32,23.214,23.181,43.88]
[1673832126038,74.26078,23.214,23.177,43.88]
[1673832126244,4.94078,23.213,23.18,43.88]
[1673832126477,21.75218864,23.211,23.182,38.02581431]
[1673832126682,20.0,23.209,23.18,43.88]
[1673832126895,37.27078,23.208,23.18,43.88]
[1673832127196,4.94078,23.208,23.177,43.88]
[1673832127406,20.0,23.206,23.177,43.88]
[1673832127831,20.0,23.206,23.179,43.88]
[1673832129000,20.0,23.206,23.177,43.88]
[1673832129404,20.0,23.205,23.177,43.88]
[1673832129735,20.0,23.205,23.171,43.88]
[1673832129941,57.58546783,23.205,23.171,43.88]
[1673832130463,57.58546783,23.205,23.173,43.88]
[1673832130676,20.0,23.206,23.175,43.88]
[1673832130990,20.0,23.218,23.18,64.95]
[1673832131397,20.0,23.218,23.181,17.0]
[1673832131606,20.0,23.222,23.2,20.89]
[1673832131839,20.0,23.225,23.201,37.0]
[1673832132024,20.0,23.225,23.201,17.0]
[1673832132236,20.0,23.225,23.202,20.0]
[1673832132466,117.2288,23.232,23.203,17.0]
[1673832132657,20.0,23.234,23.203,17.0]
[1673832132875,20.0,23.234,23.21,20.91]
[1673832133195,20.0,23.234,23.211,37.0]
[1673832133413,20.0,23.242,23.211,37.0]
[1673832133611,108.4496,23.248,23.211,37.0]
[1673832133818,108.4496,23.248,23.22,20.91]
[1673832134033,20.0,23.252,23.23,20.95]
[1673832134249,53.99218864,23.275,23.231,20.0]
[1673832134460,4.94078,23.274,23.24,21.07]
[1673832134664,20.0,23.272,23.231,20.0]
[1673832134861,37.18078,23.271,23.232,17.0]
[1673832135070,20.0,23.269,23.233,20.0]
[1673832135284,52.25,23.269,23.234,17.0]
[1673832135493,4.94078,23.268,23.234,17.0]
[1673832135809,20.0,23.266,23.234,17.0]
[1673832136031,20.0,23.266,23.22,20.91]
[1673832136032,20.0,23.266,23.23,21.07]
[1673832136227,21.07,23.26,23.21,21.06]
[1673832136431,153.93548,23.259,23.22,20.89]
[1673832136659,20.0,23.258,23.22,20.89]
[1673832136857,20.0,23.258,23.23,21.06]
[1673832137502,32.25,23.264,23.23,21.06]
[1673832137814,113.9472,23.276,23.22,84.31]
[1673832137815,32.24,23.271,23.24,21.07]
[1673832138013,168.9747,23.275,23.241,37.0]
[1673832138220,32.22,23.286,23.25,20.98]
[1673832138440,151.01758,23.286,23.251,37.0]
[1673832138643,151.01758,23.286,23.252,20.0]
[1673832138964,4.94078,23.285,23.253,17.0]
[1673832139176,32.23,23.284,23.254,20.0]
[1673832139386,24.94078,23.283,23.255,17.0]
[1673832139591,37.17078,23.282,23.254,20.0]
[1673832139795,4.94078,23.281,23.241,20.0]
[1673832140017,32.23,23.28,23.241,20.0]
[1673832140226,4.94078,23.279,23.242,17.0]
[1673832140438,32.23,23.278,23.241,17.0]
[1673832140650,32.23,23.278,23.242,20.0]
[1673832140966,32.23,23.282,23.243,17.0]
[1673832141177,32.23,23.282,23.25,20.98]
[1673832141498,20.0,23.283,23.251,17.0]
[1673832141715,20.89,23.28,23.22,83.91]
[1673832142026,4.94078,23.279,23.24,20.91]
[1673832142431,32.23,23.278,23.24,20.91]
[1673832142641,132.3,23.276,23.23,21.07]
[1673832142848,21.02,23.27,23.23,21.07]
[1673832143052,169.49078,23.269,23.23,21.07]
[1673832143263,21.07,23.26,23.21,21.06]
[1673832143486,20.0,23.258,23.21,21.06]
[1673832143702,57.20078,23.257,23.21,21.06]
[1673832144019,154.24078,23.256,23.21,21.06]
[1673832144210,132.3,23.254,23.21,21.06]
[1673832144416,21.07,23.25,23.201,20.0]
[1673832144635,21.07,23.25,23.2,20.89]
[1673832144636,152.3,23.248,23.2,20.89]
[1673832144948,132.3,23.246,23.2,20.89]
[1673832145157,57.22078,23.245,23.2,20.89]
[1673832145377,21.94078,23.244,23.2,20.89]
[1673832145594,32.28,23.243,23.21,20.91]
[1673832145805,37.22078,23.243,23.21,20.91]
[1673832146428,137.24078,23.242,23.2,20.89]
[1673832146632,21.02,23.24,23.2,20.89]
[1673832146840,132.3,23.238,23.19,20.98]
[1673832147056,57.23078,23.237,23.19,20.98]
[1673832147374,4.94078,23.236,23.2,21.06]
[1673832147570,32.29,23.24,23.21,21.07]
[1673832147998,21.02,23.24,23.211,17.0]
[1673832148216,57.23078,23.239,23.201,1.603]
[1673832148428,20.0,23.237,23.191,1.363]
[1673832148635,37.23078,23.236,23.191,1.363]
[1673832148855,24.94078,23.235,23.191,1.363]
[1673832149054,54.24078,23.234,23.191,4.663]
[1673832149585,24.94078,23.233,23.192,20.0]
[1673832149794,54.24078,23.232,23.193,9.938]
[1673832150195,154.63338,23.232,23.193,9.938]
[1673832150405,20.0,23.231,23.194,20.0]
[1673832150612,49.3,23.23,23.195,13.31]
[1673832150840,20.0,23.229,23.195,13.31]
[1673832151048,32.3,23.228,23.2,21.07]
[1673832151373,117.3926,23.232,23.201,34.07]
[1673832151561,117.3926,23.232,23.202,20.0]
[1673832151797,32.3,23.231,23.203,20.0]
[1673832152119,32.3,23.231,23.203,37.0]
[1673832152331,37.24078,23.231,23.203,37.0]
[1673832152654,20.0,23.23,23.203,37.0]
[1673832152866,32.3,23.229,23.203,37.0]
[1673832153047,24.94078,23.228,23.182,14.24]
[1673832153258,32.31,23.227,23.182,14.24]
[1673832153481,20.0,23.225,23.183,20.0]
[1673832153700,32.31,23.224,23.184,13.16]
[1673832153885,17.0,23.223,23.184,13.16]
[1673832154100,32.31,23.222,23.184,13.16]
[1673832154536,20.0,23.22,23.184,13.16]
[1673832154749,20.0,23.22,23.18,21.07]
[1673832154750,57.26078,23.219,23.18,21.07]
[1673832154939,21.94078,23.218,23.18,21.07]
[1673832155150,171.36928,23.217,23.18,21.07]
[1673832155360,20.9,23.19,23.145,20.93522006]
[1673832155572,21.02,23.18,23.143,102.23692322]
[1673832155792,57.31078,23.179,23.14,0.27164965]
[1673832156005,4.94078,23.178,23.14,0.27164965]
[1673832156213,20.0,23.176,23.14,0.27164965]
[1673832156532,32.38,23.175,23.14,0.27164965]
[1673832157039,32.38,23.175,23.141,22.34131364]
[1673832157462,20.0,23.173,23.14,0.27164965]
[1673832157676,32.38,23.172,23.14,0.27164965]
[1673832157880,32.38,23.172,23.142,20.0]
[1673832158093,4.94078,23.178,23.142,20.0]
[1673832158094,4.94078,23.178,23.15,20.98]
[1673832158302,32.36,23.187,23.151,20.0]
[1673832158523,32.36,23.187,23.151,58.78131364]
[1673832158838,32.36,23.187,23.152,20.0]
[1673832159062,26.40274354,23.186,23.151,58.78131364]
[1673832159238,32.36,23.185,23.153,86.56213431]
[1673832159454,20.0,23.184,23.154,40.0]
[1673832159672,32.37,23.183,23.154,20.0]
[1673832159891,32.37,23.183,23.156,20.0]
[1673832160209,32.36,23.186,23.157,20.0]
[1673832160416,32.35,23.197,23.161,20.0]
[1673832160613,21.46196354,23.194,23.162,20.0]
[1673832160817,37.29078,23.193,23.163,17.0]
[1673832161028,4.94078,23.192,23.163,17.0]
[1673832161258,21.07,23.19,23.163,17.0]
[1673832161572,57.30078,23.189,23.163,17.0]
[1673832161786,41.94078,23.188,23.143,12.09]
[1673832162004,37.30078,23.187,23.141,10.36]
[1673832162194,24.94078,23.186,23.143,17.0]
[1673832162406,20.0,23.184,23.15,20.91]
[1673832162615,32.37,23.183,23.151,17.0]
[1673832162830,32.36,23.185,23.152,20.0]
[1673832163045,20.0,23.186,23.153,10.55]
[1673832163260,20.0,23.184,23.154,20.0]
[1673832163458,32.37,23.183,23.154,20.0]
[1673832163675,32.37,23.183,23.154,41.46196354]
[1673832163873,32.37,23.183,23.145,58.78131364]
[1673832163874,21.07,23.18,23.145,38.78131364]
[1673832164081,74.31078,23.179,23.14,0.27164965]
[1673832164297,20.0,23.177,23.14,0.27164965]
[1673832164514,74.32078,23.176,23.14,0.27164965]
[1673832164737,4.94078,23.175,23.14,0.27164965]
[1673832164944,163.9432,23.174,23.14,0.27164965]
[1673832165258,4.94078,23.173,23.14,0.27164965]
[1673832165452,32.38,23.172,23.141,21.46196354]
[1673832165656,32.38,23.172,23.14,21.34164965]
[1673832165870,32.38,23.172,23.14,0.27164965]
[1673832165871,21.02,23.17,23.14,0.27164965]
[1673832166085,57.33078,23.169,23.14,0.27164965]
[1673832166302,20.0,23.168,23.14,0.27164965]
[1673832166515,57.33078,23.167,23.14,0.27164965]
[1673832166730,24.94078,23.166,23.14,0.27164965]
[1673832166919,37.33078,23.165,23.14,0.27164965]
[1673832167134,21.94078,23.164,23.14,0.27164965]
[1673832167343,72.39,23.163,23.14,0.27164965]
[1673832167569,77.33078,23.163,23.14,0.27164965]
[1673832167780,57.33078,23.163,23.14,0.27164965]
[1673832167990,32.39,23.163,23.141,21.46196354]
[1673832168198,32.39,23.165,23.142,20.0]
[1673832168621,32.39,23.167,23.143,21.46196354]
[1673832168821,32.38,23.172,23.144,17.0]
[1673832169246,32.38,23.172,23.146,20.0]
[1673832169456,32.38,23.172,23.145,41.46196354]
[1673832169457,32.38,23.172,23.147,17.0]
[1673832169782,4.94078,23.171,23.148,20.0]
[1673832169978,4.94078,23.171,23.14,0.27164965]
[1673832169979,32.38,23.17,23.14,0.27164965]
[1673832170195,20.0,23.168,23.14,0.27164965]
[1673832170391,54.33078,23.167,23.14,0.27164965]
[1673832170609,4.94078,23.166,23.14,0.27164965]
[1673832170817,49.39,23.165,23.14,0.27164965]
[1673832171150,24.72471,23.164,23.14,0.27164965]
[1673832171335,54.33078,23.163,23.14,0.27164965]
[1673832171547,24.94078,23.162,23.124,401.27164965]
[1673832171774,54.34078,23.161,23.125,21.46196354]
[1673832171974,4.94078,23.16,23.125,21.46196354]
[1673832172186,20.0,23.158,23.125,21.46196354]
[1673832172398,172.98438,23.157,23.125,21.46196354]
[1673832172819,4.94078,23.156,23.125,21.46196354]
[1673832173039,20.0,23.154,23.125,21.46196354]
[1673832173255,20.0,23.152,23.12,91.1002983]
[1673832173455,21.07,23.15,23.121,20.0]
[1673832173669,37.35078,23.149,23.121,21.46196354]
[1673832174089,37.35078,23.149,23.122,21.46196354]
[1673832174409,20.0,23.148,23.12,91.1002983]
[1673832174599,32.42,23.147,23.121,21.46196354]
[1673832175050,20.0,23.146,23.121,21.46196354]
[1673832175244,32.42,23.145,23.12,91.1002983]
[1673832175755,26.40274354,23.144,23.12,91.1002983]
[1673832175964,32.42,23.143,23.12,91.1002983]
[1673832176175,20.0,23.142,23.12,91.1002983]
[1673832176402,32.43,23.141,23.12,91.1002983]
[1673832176592,32.43,23.141,23.121,21.46196354]
[1673832176810,32.42,23.147,23.121,21.46196354]
[1673832177023,32.41,23.153,23.121,21.46196354]
[1673832177225,10.0,23.147,23.122,20.0]
[1673832177668,10.0,23.147,23.123,21.46196354]
[1673832177870,10.0,23.147,23.124,20.0]
[1673832178092,10.0,23.147,23.131,20.0]
[1673832178282,10.0,23.147,23.132,20.0]
[1673832178490,10.0,23.147,23.132,41.46196354]
[1673832178702,10.0,23.147,23.133,74.38327718]
[1673832178913,10.0,23.147,23.134,20.0]
[1673832179113,10.0,23.147,23.134,102.70862537]
[1673832179324,10.0,23.147,23.134,20.0]
[1673832179546,10.0,23.147,23.131,20.0]
[1673832179756,10.0,23.147,23.126,46.78731173]
[1673832179963,10.0,23.147,23.126,21.46196354]
[1673832180187,10.0,23.147,23.127,21.46196354]
[1673832181127,10.0,23.147,23.128,82.70862537]
[1673832181339,10.0,23.147,23.121,20.0]
[1673832181340,10.0,23.147,23.122,21.46196354]
[1673832181873,10.0,23.147,23.129,21.46196354]
[1673832182201,10.0,23.147,23.122,21.46196354]
[1673832182380,10.0,23.147,23.123,17.0]
[1673832182591,10.0,23.147,23.127,35.92131364]
[1673832182797,10.0,23.147,23.128,17.0]
[1673832183022,10.0,23.147,23.12,91.1002983]
[1673832183233,32.42,23.146,23.126,21.46196354]
[1673832183431,32.42,23.146,23.121,20.0]
[1673832183432,32.42,23.146,23.12,91.1002983]
[1673832183850,53.88196354,23.146,23.12,91.1002983]
[1673832184072,21.07006111,23.145,23.12,91.1002983]
[1673832184297,20.9,23.14,23.12,91.1002983]
[1673832184507,37.37078,23.139,23.12,91.1002983]
[1673832184693,41.94078,23.138,23.12,91.1002983]
[1673832185022,37.37078,23.137,23.12,91.1002983]
[1673832185217,32.42,23.142,23.12,91.1002983]
[1673832185568,20.9,23.13,23.12,46.78731173]
[1673832185870,52.44,23.129,23.118,35.92131364]
[1673832186072,4.94078,23.128,23.118,1.364e-05]
[1673832186395,32.44,23.127,23.118,1.364e-05]
[1673832186576,20.0,23.127,23.109,21.46196354]
[1673832186793,20.0,23.127,23.118,21.46196354]
[1673832187003,32.43,23.14,23.118,21.46196354]
[1673832187218,32.43,23.14,23.1,21.07]
[1673832187442,20.0,23.139,23.109,51.57137005]
[1673832187649,20.0,23.139,23.107,20.0]
[1673832187650,20.0,23.139,23.101,21.46196354]
[1673832187970,20.0,23.139,23.11,37.35196354]
[1673832188158,20.0,23.139,23.111,20.0]
[1673832188362,20.0,23.139,23.112,17.0]
[1673832188593,20.0,23.139,23.113,20.0]
[1673832188914,20.0,23.139,23.114,17.0]
[1673832189223,20.0,23.139,23.114,59.92392708]
[1673832189446,20.0,23.139,23.115,61.07494755]
[1673832189640,20.0,23.139,23.116,17.0]
[1673832189854,20.0,23.139,23.116,38.46196354]
[1673832190061,20.0,23.139,23.072,20.93522006]
[1673832190062,4.94078,23.138,23.115,39.61298401]
[1673832190267,32.43,23.137,23.109,21.46196354]
[1673832190495,4.94078,23.136,23.109,21.46196354]
[1673832190710,32.43,23.135,23.109,21.46196354]
[1673832190896,41.46196354,23.139,23.109,21.46196354]
[1673832190897,21.94078,23.134,23.109,39.61298401]
[1673832191110,21.07,23.13,23.109,39.61298401]
[1673832191334,52.44,23.129,23.102,21.46196354]
[1673832191529,4.94078,23.128,23.09,20.91]
[1673832191739,32.44,23.127,23.09,20.91]
[1673832191968,4.94078,23.126,23.091,21.46196354]
[1673832192158,52.45,23.125,23.091,21.46196354]
[1673832192368,4.94078,23.124,23.091,21.46196354]
[1673832192580,32.45,23.123,23.091,21.46196354]
[1673832192796,20.0,23.125,23.092,39.61298401]
[1673832193004,20.0,23.125,23.093,20.0]
[1673832193227,32.45,23.124,23.093,42.92392708]
[1673832193421,4.94078,23.123,23.093,39.61298401]
[1673832193634,32.45,23.122,23.093,39.61298401]
[1673832193852,24.94078,23.121,23.094,21.46196354]
[1673832194065,20.0,23.119,23.094,21.46196354]
[1673832194273,20.0,23.118,23.081,88.5403717]
[1673832194578,20.0,23.118,23.08,21.07]
[1673832194792,54.40078,23.117,23.072,28.92738769]
[1673832195010,54.40078,23.117,23.081,20.0]
[1673832195011,20.0,23.116,23.081,20.0]
[1673832195208,20.0,23.116,23.081,41.46196354]
[1673832195413,20.0,23.116,23.082,21.46196354]
[1673832195733,20.0,23.116,23.081,28.92738769]
[1673832195734,37.40078,23.115,23.07,21.06]
[1673832195948,20.0,23.113,23.074,20.0]
[1673832196153,21.07,23.11,23.07,21.06]
[1673832196358,74.41078,23.109,23.075,21.46196354]
[1673832196571,4.94078,23.108,23.075,21.46196354]
[1673832196782,32.47,23.107,23.075,21.46196354]
[1673832196992,24.94078,23.106,23.076,44.95997955]
[1673832197217,32.48,23.105,23.076,44.95997955]
[1673832197414,32.48,23.105,23.076,39.61298401]
[1673832197621,20.0,23.104,23.076,39.61298401]
[1673832197828,32.48,23.103,23.076,39.61298401]
[1673832198145,40.0,23.102,23.077,61.07494755]
[1673832198476,32.48,23.101,23.077,39.61298401]
[1673832198672,32.48,23.101,23.075,21.46196354]
[1673832198887,20.0,23.1,23.078,57.34851489]
[1673832199325,20.0,23.1,23.079,57.34851489]
[1673832199510,20.0,23.102,23.079,57.34851489]
[1673832199724,32.47,23.112,23.08,21.46196354]
[1673832199934,32.46,23.118,23.082,20.0]
[1673832200146,52.46,23.119,23.082,20.0]
[1673832200353,73.92196354,23.119,23.083,41.46196354]
[1673832200564,73.92196354,23.119,23.083,21.46196354]
[1673832200798,73.92196354,23.119,23.084,21.46196354]
[1673832201120,32.45,23.121,23.082,44.95997955]
[1673832201421,148.9348,23.132,23.09,21.07]
[1673832201637,116.4948,23.132,23.09,21.07]
[1673832201949,40.89,23.13,23.091,69.19527642]
[1673832202167,21.07,23.12,23.091,47.73331288]
[1673832202363,32.46,23.119,23.092,46.15824649]
[1673832202572,4.94078,23.118,23.092,46.15824649]
[1673832202779,32.46,23.117,23.092,40.65321801]
[1673832203117,20.0,23.116,23.092,40.65321801]
[1673832203303,32.46,23.115,23.083,21.46196354]
[1673832203941,20.0,23.116,23.08,20.91]
[1673832204149,57.40078,23.116,23.08,20.91]
[1673832204464,57.40078,23.116,23.081,21.46196354]
[1673832204465,20.0,23.115,23.081,21.46196354]
[1673832204661,32.46,23.114,23.081,62.11518155]
[1673832204875,24.94078,23.116,23.082,40.65321801]
[1673832205086,20.0,23.114,23.082,86.8114645]
[1673832205307,32.46,23.113,23.082,108.27342804]
[1673832205498,32.46,23.113,23.083,40.15321801]
[1673832205719,24.94078,23.112,23.083,40.15321801]
[1673832205930,24.94078,23.112,23.083,40.60988468]
[1673832205931,20.0,23.109,23.083,40.60988468]
[1673832206145,20.0,23.109,23.083,62.07184822]
[1673832206348,20.0,23.108,23.077,46.15824649]
[1673832206679,20.0,23.109,23.08,42.37196354]
[1673832206888,20.0,23.114,23.081,20.0]
[1673832207084,20.0,23.114,23.082,20.0]
[1673832207728,20.0,23.118,23.09,21.06]
[1673832208049,20.0,23.121,23.091,20.0]
[1673832208359,20.0,23.128,23.092,17.0]
[1673832208577,133.3131,23.133,23.1,21.06]
[1673832208794,113.3131,23.133,23.101,17.0]
[1673832209091,152.3441,23.138,23.102,40.0]
[1673832209305,32.42,23.142,23.12,20.89]
[1673832209518,119.9141,23.153,23.121,17.0]
[1673832209710,32.41,23.152,23.121,67.30511545]
[1673832209920,41.46196354,23.151,23.122,42.16988468]
[1673832210131,32.41,23.15,23.123,17.0]
[1673832210350,32.42,23.144,23.123,17.0]
[1673832210752,20.0,23.143,23.122,50.30511545]
[1673832210968,37.36078,23.142,23.113,21.46196354]
[1673832211176,37.36078,23.142,23.114,17.0]
[1673832211177,4.94078,23.141,23.114,17.0]
[1673832211397,32.43,23.14,23.114,17.0]
[1673832211615,20.0,23.141,23.115,21.46196354]
[1673832211858,20.0,23.143,23.117,20.0]
[1673832212138,20.0,23.152,23.117,20.0]
[1673832212139,52.41,23.151,23.12,21.07]
[1673832212339,20.0,23.151,23.121,37.0]
[1673832212754,20.0,23.151,23.122,20.0]
[1673832212967,20.0,23.151,23.123,37.0]
[1673832213191,32.39,23.164,23.123,58.46196354]
[1673832213400,144.961,23.164,23.13,20.91]
[1673832213715,20.0,23.163,23.132,20.0]
[1673832213925,32.4,23.162,23.132,20.0]
[1673832214129,20.0,23.163,23.133,58.46196354]
[1673832214544,32.4,23.162,23.134,21.46196354]
[1673832214751,20.0,23.161,23.136,20.0]
[1673832214959,20.0,23.161,23.137,17.0]
[1673832215171,20.0,23.163,23.137,17.0]
[1673832215172,10.0,23.143,23.138,20.0]
[1673832215380,20.0,23.163,23.14,20.0]
[1673832215694,52.38,23.173,23.142,20.0]
[1673832215912,118.7166,23.174,23.15,20.89]
[1673832216106,32.36,23.187,23.15,20.89]
[1673832216322,118.7166,23.186,23.151,17.0]
[1673832216528,32.38,23.176,23.151,17.0]
[1673832216744,20.0,23.184,23.153,20.0]
[1673832216974,32.37,23.183,23.154,17.0]
[1673832217500,20.0,23.176,23.153,17.0]
[1673832217820,20.0,23.176,23.143,20.0]
[1673832218129,32.38,23.175,23.141,19.52970782]
[1673832218326,20.0,23.174,23.141,19.52970782]
[1673832218538,32.38,23.173,23.143,19.52970782]
[1673832218747,20.0,23.171,23.134,20.0]
[1673832218969,20.0,23.171,23.14,20.91]
[1673832219396,26.01078,23.17,23.141,19.52970782]
[1673832219725,26.01078,23.17,23.122,20.0]
[1673832219726,20.0,23.168,23.122,20.0]
[1673832219916,20.0,23.166,23.122,20.0]
[1673832220134,20.0,23.166,23.13,20.98]
[1673832220538,151.9228,23.172,23.14,20.91]
[1673832220750,119.5428,23.172,23.15,21.07]
[1673832220959,32.37,23.183,23.151,17.0]
[1673832221189,21.46196354,23.18,23.152,20.0]
[1673832221509,32.37,23.179,23.153,17.0]
[1673832221703,116.4086,23.183,23.154,20.0]
[1673832221907,116.4086,23.183,23.155,17.0]
[1673832222128,21.46196354,23.182,23.155,17.0]
[1673832222342,148.7786,23.183,23.153,17.0]
[1673832222661,20.0,23.182,23.153,17.0]
[1673832222974,32.37,23.181,23.152,20.0]
[1673832223191,32.37,23.181,23.151,39.52970782]
[1673832223380,32.37,23.181,23.152,19.52970782]
[1673832223591,20.0,23.18,23.153,20.0]
[1673832224022,20.0,23.18,23.154,19.52970782]
[1673832224234,20.0,23.18,23.155,17.0]
[1673832224671,20.0,23.18,23.157,20.0]
[1673832224975,20.0,23.187,23.158,17.0]
[1673832224976,32.36,23.186,23.158,17.0]
[1673832225286,20.0,23.187,23.16,21.06]
[1673832225490,32.36,23.186,23.161,17.0]
[1673832225695,20.0,23.195,23.163,20.0]
[1673832225907,32.35,23.194,23.164,17.0]
[1673832226235,20.0,23.195,23.17,20.95]
[1673832226446,32.35,23.194,23.171,17.0]
[1673832226756,20.0,23.193,23.171,17.0]
[1673832226968,32.35,23.196,23.172,20.0]
[1673832227159,111.102,23.197,23.17,20.91]
[1673832227370,111.102,23.197,23.173,20.07849364]
[1673832227792,111.102,23.197,23.174,20.0]
[1673832228217,32.33,23.206,23.18,21.07]
[1673832228432,111.6478,23.21,23.181,17.0]
[1673832228643,111.6478,23.21,23.183,20.0]
[1673832228868,111.6478,23.21,23.184,17.0]
[1673832229077,20.0,23.209,23.184,37.07849364]
[1673832229283,32.33,23.208,23.173,41.11889607]
[1673832229597,20.0,23.207,23.18,20.07849364]
[1673832229815,32.33,23.206,23.18,20.07849364]
[1673832230221,32.33,23.206,23.181,20.0]
[1673832230432,20.0,23.207,23.182,17.0]
[1673832230651,20.0,23.207,23.183,20.0]
[1673832230858,20.0,23.207,23.184,17.0]
[1673832231072,32.33,23.209,23.184,37.07849364]
[1673832231287,111.6478,23.21,23.184,37.07849364]
[1673832231476,32.32,23.218,23.184,37.07849364]
[1673832231477,32.32,23.218,23.185,20.07849364]
[1673832231688,32.32,23.218,23.19,20.98]
[1673832232004,118.3851,23.22,23.191,57.07849364]
[1673832232213,118.3851,23.22,23.191,87.58321449]
[1673832232534,20.0,23.219,23.192,1.484]
[1673832232745,52.32,23.219,23.192,20.07849364]
[1673832232953,52.32,23.219,23.193,57.07849364]
[1673832233164,20.0,23.219,23.191,40.04]
[1673832233379,20.0,23.219,23.191,37.0]
[1673832233591,20.0,23.219,23.192,20.0]
[1673832233796,20.0,23.219,23.193,37.0]
[1673832234004,20.0,23.219,23.193,20.0]
[1673832234221,20.0,23.219,23.19,20.98]
[1673832234434,20.0,23.219,23.187,30.50472085]
[1673832234435,32.32,23.218,23.187,30.50472085]
[1673832234629,20.0,23.217,23.186,20.07849364]
[1673832234844,32.32,23.216,23.187,20.07849364]
[1673832235045,118.3851,23.22,23.19,21.07]
[1673832235264,32.3,23.23,23.19,21.07]
[1673832235476,20.0,23.227,23.192,20.0]
[1673832235696,32.31,23.226,23.193,37.0]
[1673832235904,37.25078,23.226,23.192,17.0]
[1673832236119,37.25078,23.226,23.19,21.07]
[1673832236312,4.94078,23.225,23.19,21.07]
[1673832236519,20.0,23.223,23.191,20.07849364]
[1673832236735,20.89,23.22,23.191,34.12201801]
[1673832236949,18.5,23.218,23.18,20.91]
[1673832237161,18.5,23.218,23.171,20.0]
[1673832237162,74.26078,23.217,23.171,20.0]
[1673832237467,20.0,23.215,23.176,20.07849364]
[1673832237688,74.26078,23.214,23.176,20.07849364]
[1673832237904,124.61118,23.213,23.176,20.07849364]
[1673832238120,69.33,23.212,23.176,20.07849364]
[1673832238429,24.94078,23.211,23.171,40.07849364]
[1673832238636,32.33,23.21,23.174,30.50472085]
[1673832238846,32.33,23.21,23.175,20.0]
[1673832239040,147.6326,23.21,23.175,20.07849364]
[1673832239255,147.6326,23.21,23.176,20.07849364]
[1673832239481,147.6326,23.21,23.177,20.0]
[1673832239482,20.0,23.209,23.177,20.0]
[1673832239690,37.27078,23.208,23.172,20.0]
[1673832239887,37.27078,23.208,23.168,20.0]
[1673832239888,21.94078,23.207,23.168,20.0]
[1673832240099,52.33,23.206,23.174,20.07849364]
[1673832240419,20.0,23.199,23.16,21.06]
[1673832240643,153.78918,23.198,23.165,20.07849364]
[1673832240843,41.94078,23.197,23.165,20.07849364]
[1673832241043,41.94078,23.197,23.123,4.99003]
[1673832241044,37.29078,23.196,23.15,21.06]
[1673832241263,41.94078,23.195,23.158,20.07849364]
[1673832241587,41.94078,23.195,23.151,20.0]
[1673832241588,20.0,23.193,23.151,20.0]
[1673832241914,20.0,23.193,23.16,20.98]
[1673832242114,32.35,23.192,23.16,20.98]